fUSD/lending_fUSD_20250222
["ID","MTS","AMOUNT","RATE_DAILY","PERIOD"]
[354028464,1740184264362,-500.0,0.00012021,2]
[354028465,1740184264372,-500.0,0.00012101,2]
[354028466,1740184264381,-500.0,0.00012101,2]
[354028467,1740184264391,-500.0,0.00012101,2]
[354028468,1740184264404,-500.0,0.00012101,2]
[354028469,1740184264414,-500.0,0.00012101,2]
[354028470,1740184264423,-500.0,0.00012101,2]
[354028471,1740184264432,-500.0,0.00012101,2]
[354028472,1740184264442,-580.44,0.00012101,2]
[354028473,1740184264452,-547.09,0.00012101,2]
[354028474,1740184264461,-177.27,0.00012102,2]
[354028475,1740184264471,-458.83,0.00012102,2]
[354028476,1740184264481,-333.86663669,0.00012102,2]
[354028477,1740184264490,-160.331528,0.00012102,2]
[354028478,1740184264499,-409.07043266,0.00012102,2]
[354028479,1740184264509,-500.0,0.00012102,2]
[354028480,1740184264519,-1053.19,0.00012102,2]
[354028481,1740184264529,-500.0,0.00012102,2]
[354028482,1740184264540,-262.34,0.00012102,2]
[354028483,1740184264550,-500.0,0.00012102,2]
[354028484,1740184264560,-500.0,0.00012102,2]
[354028485,1740184264569,-150.336914,0.00012102,2]
[354028486,1740184264578,-553.29,0.00012102,2]
[354028487,1740184264588,-500.0,0.00012102,2]
[354028488,1740184264598,-500.0,0.00012102,2]
[354028489,1740184264609,-906.21,0.00012102,2]
[354028490,1740184264618,-500.0,0.00012102,2]
[354028491,1740184264628,-500.0,0.00012102,2]
[354028492,1740184264638,-500.0,0.00012102,2]
[354028493,1740184264648,-500.0,0.00012102,2]
[354028494,1740184264658,-679.72,0.00012102,2]
[354028495,1740184264668,-1197.13,0.00012102,2]
[354028496,1740184264678,-500.0,0.00012102,2]
[354028497,1740184264688,-500.0,0.00012102,2]
[354028498,1740184264698,-500.0,0.00012102,2]
[354028499,1740184264708,-500.0,0.00012102,2]
[354028500,1740184264718,-702.0,0.00012102,2]
[354028501,1740184264728,-500.0,0.00012102,2]
[354028502,1740184264738,-500.0,0.00012102,2]
[354028503,1740184264747,-1114.13,0.00012102,2]
[354028504,1740184264757,-500.0,0.00012102,2]
[354028505,1740184264767,-500.0,0.00012102,2]
[354028506,1740184264776,-643.22,0.00012102,2]
[354028507,1740184264786,-500.0,0.00012102,2]
[354028508,1740184264796,-707.93,0.00012102,2]
[354028509,1740184264805,-500.0,0.00012102,2]
[354028510,1740184264815,-500.0,0.00012102,2]
[354028511,1740184264825,-548.22,0.00012102,2]
[354028512,1740184264834,-613.23,0.00012102,2]
[354028513,1740184264843,-811.34,0.00012102,2]
[354028514,1740184264853,-500.0,0.00012102,2]
[354028515,1740184264863,-500.0,0.00012102,2]
[354028516,1740184264873,-500.0,0.00012102,2]
[354028517,1740184264882,-500.0,0.00012102,2]
[354028518,1740184264892,-500.0,0.00012102,2]
[354028519,1740184264901,-500.0,0.00012102,2]
[354028520,1740184264912,-761.9,0.00012102,2]
[354028521,1740184264923,-500.0,0.00012102,2]
[354028522,1740184264976,-500.0,0.00012102,2]
[354028523,1740184264986,-190.22613455,0.00012102,2]
[354028524,1740184264995,-768.21,0.00012102,2]
[354028525,1740184265005,-529.43,0.00012102,2]
[354028526,1740184265015,-500.0,0.00012102,2]
[354028527,1740184265024,-803.09,0.00012102,2]
[354028528,1740184265034,-500.0,0.00012102,2]
[354028529,1740184265044,-500.0,0.00012102,2]
[354028530,1740184265053,-344.91,0.00012102,2]
[354028531,1740184265062,-500.0,0.00012102,2]
[354028532,1740184265071,-500.0,0.00012102,2]
[354028533,1740184265080,-792.55,0.00012102,2]
[354028534,1740184265090,-500.0,0.00012102,2]
[354028535,1740184265099,-500.0,0.00012102,2]
[354028536,1740184265108,-500.0,0.00012102,2]
[354028537,1740184265118,-500.0,0.00012103,2]
[354028538,1740184265127,-500.0,0.00012103,2]
[354028539,1740184265136,-500.0,0.00012183,2]
[354028540,1740184265145,-500.0,0.00012183,2]
[354028541,1740184265157,-500.0,0.00012183,2]
[354028542,1740184265167,-500.0,0.00012183,2]
[354028543,1740184265176,-500.0,0.00012183,2]
[354028544,1740184265187,-500.0,0.00012183,2]
[354028545,1740184265196,-500.0,0.00012183,2]
[354028546,1740184265206,-580.44,0.00012183,2]
[354028547,1740184265215,-547.09,0.00012183,2]
[354028548,1740184265224,-500.0,0.00012184,2]
[354028549,1740184265234,-1053.19,0.00012184,2]
[354028550,1740184265243,-283.57,0.00012184,2]
[354028551,1740184265253,-500.0,0.00012184,2]
[354028552,1740184265263,-500.0,0.00012184,2]
[354028553,1740184265273,-150.336914,0.00012184,2]
[354028554,1740184265282,-553.29,0.00012184,2]
[354028555,1740184265292,-500.0,0.00012184,2]
[354028556,1740184265301,-500.0,0.00012184,2]
[354028557,1740184265310,-906.21,0.00012184,2]
[354028558,1740184265320,-500.0,0.00012184,2]
[354028559,1740184265329,-500.0,0.00012184,2]
[354028560,1740184265339,-500.0,0.00012184,2]
[354028561,1740184265348,-500.0,0.00012184,2]
[354028562,1740184265358,-679.72,0.00012184,2]
[354028563,1740184265367,-1197.13,0.00012184,2]
[354028564,1740184265376,-500.0,0.00012184,2]
[354028565,1740184265386,-437.46023744,0.00012184,2]
[354028566,1740184265397,-500.0,0.00012184,2]
[354028567,1740184265407,-470.9,0.00012184,2]
[354028568,1740184265417,-702.0,0.00012184,2]
[354028569,1740184265427,-500.0,0.00012184,2]
[354028570,1740184265436,-500.0,0.00012184,2]
[354028571,1740184265446,-1114.13,0.00012184,2]
[354028572,1740184265455,-500.0,0.00012184,2]
[354028573,1740184265464,-500.0,0.00012184,2]
[354028574,1740184265474,-643.22,0.00012184,2]
[354028575,1740184265484,-500.0,0.00012184,2]
[354028576,1740184265493,-707.93,0.00012184,2]
[354028577,1740184265503,-500.0,0.00012184,2]
[354028578,1740184265512,-500.0,0.00012184,2]
[354028579,1740184265522,-548.22,0.00012184,2]
[354028580,1740184265531,-613.23,0.00012184,2]
[354028581,1740184265540,-811.34,0.00012184,2]
[354028582,1740184265550,-500.0,0.00012184,2]
[354028583,1740184265559,-500.0,0.00012184,2]
[354028584,1740184265569,-500.0,0.00012184,2]
[354028585,1740184265578,-500.0,0.00012184,2]
[354028586,1740184265588,-500.0,0.00012184,2]
[354028587,1740184265598,-500.0,0.00012184,2]
[354028588,1740184265607,-761.9,0.00012184,2]
[354028589,1740184265617,-500.0,0.00012184,2]
[354028590,1740184265627,-500.0,0.00012184,2]
[354028591,1740184265636,-768.21,0.00012184,2]
[354028592,1740184265645,-529.43,0.00012184,2]
[354028593,1740184265655,-500.0,0.00012184,2]
[354028594,1740184265665,-803.09,0.00012184,2]
[354028595,1740184265674,-500.0,0.00012184,2]
[354028596,1740184265684,-500.0,0.00012184,2]
[354028597,1740184265693,-500.0,0.00012184,2]
[354028598,1740184265703,-792.55,0.00012184,2]
[354028599,1740184265712,-500.0,0.00012184,2]
[354028600,1740184265722,-500.0,0.00012184,2]
[354028601,1740184265731,-500.0,0.00012184,2]
[354028602,1740184265740,-500.0,0.00012185,2]
[354028603,1740184265750,-500.0,0.00012185,2]
[354028604,1740184265759,-500.0,0.00012185,2]
[354028605,1740184265769,-150.0,0.0001221,2]
[354028606,1740184265778,-150.0,0.0001223,2]
[354028607,1740184265787,-150.0,0.0001223,2]
[354028608,1740184265796,-150.0,0.0001223,2]
[354028609,1740184265805,-500.0,0.00012266,2]
[354028610,1740184265814,-500.0,0.00012266,2]
[354028611,1740184265825,-215.9920124,0.00012266,2]
[354028612,1740184265834,-500.0,0.00012266,2]
[354028613,1740184265844,-500.0,0.00012266,2]
[354028614,1740184265853,-500.0,0.00012266,2]
[354028615,1740184265863,-500.0,0.00012266,2]
[354028616,1740184265872,-580.44,0.00012266,2]
[354028617,1740184265881,-547.09,0.00012266,2]
[354028618,1740184265891,-500.0,0.00012267,2]
[354028619,1740184265900,-500.0,0.00012267,2]
[354028620,1740184265909,-160.331528,0.00012267,2]
[354028621,1740184265918,-500.0,0.00012267,2]
[354028622,1740184265928,-1053.19,0.00012267,2]
[354028623,1740184265937,-500.0,0.00012267,2]
[354028624,1740184265946,-500.0,0.00012267,2]
[354028625,1740184265956,-553.29,0.00012267,2]
[354028626,1740184265965,-500.0,0.00012267,2]
[354028627,1740184265974,-500.0,0.00012267,2]
[354028628,1740184265984,-906.21,0.00012267,2]
[354028629,1740184265993,-500.0,0.00012267,2]
[354028630,1740184266003,-500.0,0.00012267,2]
[354028631,1740184266012,-500.0,0.00012267,2]
[354028632,1740184266021,-500.0,0.00012267,2]
[354028633,1740184266031,-679.72,0.00012267,2]
[354028634,1740184266040,-1197.13,0.00012267,2]
[354028635,1740184266050,-500.0,0.00012267,2]
[354028636,1740184266059,-500.0,0.00012267,2]
[354028637,1740184266069,-702.0,0.00012267,2]
[354028638,1740184266078,-500.0,0.00012267,2]
[354028639,1740184266089,-500.0,0.00012267,2]
[354028640,1740184266099,-1114.13,0.00012267,2]
[354028641,1740184266108,-500.0,0.00012267,2]
[354028642,1740184266117,-500.0,0.00012267,2]
[354028643,1740184266127,-643.22,0.00012267,2]
[354028644,1740184266136,-500.0,0.00012267,2]
[354028645,1740184266146,-707.93,0.00012267,2]
[354028646,1740184266156,-500.0,0.00012267,2]
[354028647,1740184266166,-500.0,0.00012267,2]
[354028648,1740184266176,-548.22,0.00012267,2]
[354028649,1740184266185,-613.23,0.00012267,2]
[354028650,1740184266195,-811.34,0.00012267,2]
[354028651,1740184266205,-500.0,0.00012267,2]
[354028652,1740184266215,-500.0,0.00012267,2]
[354028653,1740184266225,-500.0,0.00012267,2]
[354028654,1740184266234,-500.0,0.00012267,2]
[354028655,1740184266244,-392.4605031,0.00012267,2]
[354028656,1740184266253,-500.0,0.00012267,2]
[354028657,1740184266262,-761.9,0.00012267,2]
[354028658,1740184266272,-500.0,0.00012267,2]
[354028659,1740184266281,-500.0,0.00012267,2]
[354028660,1740184266291,-768.21,0.00012267,2]
[354028661,1740184266301,-529.43,0.00012267,2]
[354028662,1740184266311,-500.0,0.00012267,2]
[354028663,1740184266320,-803.09,0.00012267,2]
[354028664,1740184266330,-500.0,0.00012267,2]
[354028665,1740184266340,-500.0,0.00012267,2]
[354028666,1740184266349,-500.0,0.00012267,2]
[354028667,1740184266358,-792.55,0.00012267,2]
[354028668,1740184266367,-500.0,0.00012267,2]
[354028669,1740184266376,-500.0,0.00012267,2]
[354028670,1740184266386,-409.07,0.00012267,2]
[354028671,1740184266399,-422.09270733,0.000123,2]
[354028672,1740184266409,-517.1665833,0.000123,2]
[354028673,1740184266418,-500.0,0.00012348,2]
[354028674,1740184266426,-500.0,0.00012348,2]
[354028675,1740184266436,-500.0,0.00012348,2]
[354028676,1740184266445,-500.0,0.00012348,2]
[354028677,1740184266455,-500.0,0.00012348,2]
[354028678,1740184266464,-500.0,0.00012348,2]
[354028679,1740184266475,-580.44,0.00012348,2]
[354028680,1740184266485,-547.09,0.00012348,2]
[354028681,1740184266494,-1062.93677813,0.00012349,2]
[354028682,1740184266503,-1101.12341909,0.00012349,2]
[354028683,1740184266513,-500.0,0.00012349,2]
[354028684,1740184266523,-628.3,0.00012349,2]
[354028685,1740184266532,-195.0977965,0.00012349,2]
[354028686,1740184266541,-1053.19,0.00012349,2]
[354028687,1740184266551,-500.0,0.00012349,2]
[354028688,1740184266560,-500.0,0.00012349,2]
[354028689,1740184266569,-150.336914,0.00012349,2]
[354028690,1740184266578,-553.29,0.00012349,2]
[354028691,1740184266589,-500.0,0.00012349,2]
[354028692,1740184266599,-500.0,0.00012349,2]
[354028693,1740184266610,-906.21,0.00012349,2]
[354028694,1740184266619,-500.0,0.00012349,2]
[354028695,1740184266628,-500.0,0.00012349,2]
[354028696,1740184266638,-500.0,0.00012349,2]
[354028697,1740184266648,-500.0,0.00012349,2]
[354028698,1740184266657,-679.72,0.00012349,2]
[354028699,1740184266666,-1197.13,0.00012349,2]
[354028700,1740184266676,-500.0,0.00012349,2]
[354028701,1740184266685,-500.0,0.00012349,2]
[354028702,1740184266694,-702.0,0.00012349,2]
[354028703,1740184266704,-500.0,0.00012349,2]
[354028704,1740184266713,-500.0,0.00012349,2]
[354028705,1740184266723,-1114.13,0.00012349,2]
[354028706,1740184266732,-500.0,0.00012349,2]
[354028707,1740184266742,-183.74475593,0.00012349,2]
[354028708,1740184266751,-643.22,0.00012349,2]
[354028709,1740184266760,-500.0,0.00012349,2]
[354028710,1740184266769,-707.93,0.00012349,2]
[354028711,1740184266778,-500.0,0.00012349,2]
[354028712,1740184266788,-500.0,0.00012349,2]
[354028713,1740184266797,-548.22,0.00012349,2]
[354028714,1740184266806,-613.23,0.00012349,2]
[354028715,1740184266815,-811.34,0.00012349,2]
[354028716,1740184266824,-500.0,0.00012349,2]
[354028717,1740184266835,-500.0,0.00012349,2]
[354028718,1740184266844,-500.0,0.00012349,2]
[354028719,1740184266853,-500.0,0.00012349,2]
[354028720,1740184266863,-500.0,0.00012349,2]
[354028721,1740184266872,-761.9,0.00012349,2]
[354028722,1740184266882,-500.0,0.00012349,2]
[354028723,1740184266891,-500.0,0.00012349,2]
[354028724,1740184266902,-768.21,0.00012349,2]
[354028725,1740184266915,-529.43,0.00012349,2]
[354028726,1740184266924,-500.0,0.00012349,2]
[354028727,1740184266934,-803.09,0.00012349,2]
[354028728,1740184266943,-500.0,0.00012349,2]
[354028729,1740184266953,-500.0,0.00012349,2]
[354028730,1740184266963,-500.0,0.00012349,2]
[354028731,1740184266974,-792.55,0.00012349,2]
[354028732,1740184266983,-500.0,0.00012349,2]
[354028733,1740184266993,-500.0,0.00012349,2]
[354028734,1740184267003,-500.0,0.0001243,2]
[354028735,1740184267012,-531.94,0.0001243,2]
[354028736,1740184267022,-500.0,0.0001243,2]
[354028737,1740184267031,-500.0,0.0001243,2]
[354028738,1740184267040,-500.0,0.0001243,2]
[354028739,1740184267050,-500.0,0.0001243,2]
[354028740,1740184267059,-580.44,0.0001243,2]
[354028741,1740184267069,-547.09,0.0001243,2]
[354028742,1740184267078,-160.331528,0.00012431,2]
[354028743,1740184267088,-1053.19,0.00012431,2]
[354028744,1740184267098,-500.0,0.00012431,2]
[354028745,1740184267107,-500.0,0.00012431,2]
[354028746,1740184267117,-150.336914,0.00012431,2]
[354028747,1740184267127,-553.29,0.00012431,2]
[354028748,1740184267136,-500.0,0.00012431,2]
[354028749,1740184267146,-500.0,0.00012431,2]
[354028750,1740184267158,-906.21,0.00012431,2]
[354028751,1740184267168,-500.0,0.00012431,2]
[354028752,1740184267177,-500.0,0.00012431,2]
[354028753,1740184267187,-500.0,0.00012431,2]
[354028754,1740184267196,-500.0,0.00012431,2]
[354028755,1740184267206,-679.72,0.00012431,2]
[354028756,1740184267215,-1197.13,0.00012431,2]
[354028757,1740184267225,-500.0,0.00012431,2]
[354028758,1740184267235,-500.0,0.00012431,2]
[354028759,1740184267245,-702.0,0.00012431,2]
[354028760,1740184267254,-500.0,0.00012431,2]
[354028761,1740184267266,-500.0,0.00012431,2]
[354028762,1740184267275,-1114.13,0.00012431,2]
[354028763,1740184267285,-500.0,0.00012431,2]
[354028764,1740184267294,-643.22,0.00012431,2]
[354028765,1740184267304,-500.0,0.00012431,2]
[354028766,1740184267313,-707.93,0.00012431,2]
[354028767,1740184267323,-500.0,0.00012431,2]
[354028768,1740184267332,-500.0,0.00012431,2]
[354028769,1740184267341,-548.22,0.00012431,2]
[354028770,1740184267351,-613.23,0.00012431,2]
[354028771,1740184267361,-811.34,0.00012431,2]
[354028772,1740184267371,-500.0,0.00012431,2]
[354028773,1740184267380,-500.0,0.00012431,2]
[354028774,1740184267390,-500.0,0.00012431,2]
[354028775,1740184267404,-500.0,0.00012431,2]
[354028776,1740184267414,-500.0,0.00012431,2]
[354028777,1740184267424,-761.9,0.00012431,2]
[354028778,1740184267434,-500.0,0.00012431,2]
[354028779,1740184267444,-500.0,0.00012431,2]
[354028780,1740184267454,-768.21,0.00012431,2]
[354028781,1740184267464,-529.43,0.00012431,2]
[354028782,1740184267473,-500.0,0.00012431,2]
[354028783,1740184267483,-803.09,0.00012431,2]
[354028784,1740184267493,-500.0,0.00012431,2]
[354028785,1740184267503,-500.0,0.00012431,2]
[354028786,1740184267513,-500.0,0.00012431,2]
[354028787,1740184267522,-792.55,0.00012431,2]
[354028788,1740184267531,-500.0,0.00012431,2]
[354028789,1740184267542,-357.55320453,0.00012431,2]
[354028790,1740184267552,-500.0,0.00012432,2]
[354028791,1740184267561,-2691.55639,0.0001247,2]
[354028792,1740184267571,-3376.64665758,0.0001248,2]
[354028793,1740184267580,-166.74,0.00012512,2]
[354028794,1740184267591,-500.0,0.00012512,2]
[354028795,1740184267601,-617.54,0.00012512,2]
[354028796,1740184267611,-500.0,0.00012512,2]
[354028797,1740184267620,-500.0,0.00012512,2]
[354028798,1740184267630,-580.44,0.00012512,2]
[354028799,1740184267640,-547.09,0.00012512,2]
[354028800,1740184267650,-160.331528,0.00012513,2]
[354028801,1740184267660,-1053.19,0.00012513,2]
[354028802,1740184267669,-500.0,0.00012513,2]
[354028803,1740184267679,-500.0,0.00012513,2]
[354028804,1740184267689,-553.29,0.00012513,2]
[354028805,1740184267699,-403.15000002,0.00012513,2]
[354028806,1740184267709,-500.0,0.00012513,2]
[354028807,1740184267719,-906.21,0.00012513,2]
[354028808,1740184267729,-500.0,0.00012513,2]
[354028809,1740184267739,-500.0,0.00012513,2]
[354028810,1740184267749,-500.0,0.00012513,2]
[354028811,1740184267759,-500.0,0.00012513,2]
[354028812,1740184267769,-679.72,0.00012513,2]
[354028813,1740184267780,-1197.13,0.00012513,2]
[354028814,1740184267790,-500.0,0.00012513,2]
[354028815,1740184267800,-500.0,0.00012513,2]
[354028816,1740184267810,-702.0,0.00012513,2]
[354028817,1740184267821,-564.24,0.00012513,2]
[354028818,1740184267831,-500.0,0.00012513,2]
[354028819,1740184267842,-1114.13,0.00012513,2]
[354028820,1740184267851,-500.0,0.00012513,2]
[354028821,1740184267861,-643.22,0.00012513,2]
[354028822,1740184267871,-500.0,0.00012513,2]
[354028823,1740184267882,-707.93,0.00012513,2]
[354028824,1740184267892,-500.0,0.00012513,2]
[354028825,1740184267902,-500.0,0.00012513,2]
[354028826,1740184267912,-548.22,0.00012513,2]
[354028827,1740184267922,-613.23,0.00012513,2]
[354028828,1740184267932,-811.34,0.00012513,2]
[354028829,1740184267942,-500.0,0.00012513,2]
[354028830,1740184267952,-311.52,0.00012513,2]
[354028831,1740184267961,-326.42148764,0.00012513,2]
[354028832,1740184267971,-500.0,0.00012513,2]
[354028833,1740184267981,-372.2646424,0.00012513,2]
[354028834,1740184267991,-761.9,0.00012513,2]
[354028835,1740184268002,-500.0,0.00012513,2]
[354028836,1740184268013,-500.0,0.00012513,2]
[354028837,1740184268023,-768.21,0.00012513,2]
[354028838,1740184268033,-529.43,0.00012513,2]
[354028839,1740184268043,-513.90425773,0.00012513,2]
[354028840,1740184268054,-803.09,0.00012513,2]
[354028841,1740184268064,-500.0,0.00012513,2]
[354028842,1740184268073,-500.0,0.00012513,2]
[354028843,1740184268083,-500.0,0.00012513,2]
[354028844,1740184268093,-792.55,0.00012513,2]
[354028845,1740184268103,-500.0,0.00012513,2]
[354028846,1740184268113,-154.571206,0.00012513,2]
[354028847,1740184268123,-500.0,0.00012514,2]
[354028848,1740184268133,-422.09270733,0.0001258,2]
[354028849,1740184268143,-517.1665833,0.0001258,2]
[354028850,1740184268153,-590.63,0.00012594,2]
[354028851,1740184268163,-500.0,0.00012594,2]
[354028852,1740184268173,-500.0,0.00012594,2]
[354028853,1740184268182,-580.44,0.00012594,2]
[354028854,1740184268192,-547.09,0.00012594,2]
[354028855,1740184268202,-1053.19,0.00012595,2]
[354028856,1740184268212,-500.0,0.00012595,2]
[354028857,1740184268222,-255.30663072,0.00012595,2]
[354028858,1740184268232,-150.336914,0.00012595,2]
[354028859,1740184268243,-553.29,0.00012595,2]
[354028860,1740184268253,-500.0,0.00012595,2]
[354028861,1740184268263,-906.21,0.00012595,2]
[354028862,1740184268273,-500.0,0.00012595,2]
[354028863,1740184268283,-500.0,0.00012595,2]
[354028864,1740184268293,-500.0,0.00012595,2]
[354028865,1740184268303,-500.0,0.00012595,2]
[354028866,1740184268313,-679.72,0.00012595,2]
[354028867,1740184268323,-1197.13,0.00012595,2]
[354028868,1740184268333,-500.0,0.00012595,2]
[354028869,1740184268343,-500.0,0.00012595,2]
[354028870,1740184268353,-702.0,0.00012595,2]
[354028871,1740184268363,-500.0,0.00012595,2]
[354028872,1740184268373,-1114.13,0.00012595,2]
[354028873,1740184268383,-351.03547101,0.00012595,2]
[354028874,1740184268392,-643.22,0.00012595,2]
[354028875,1740184268406,-500.0,0.00012595,2]
[354028876,1740184268416,-707.93,0.00012595,2]
[354028877,1740184268426,-500.0,0.00012595,2]
[354028878,1740184268435,-500.0,0.00012595,2]
[354028879,1740184268446,-548.22,0.00012595,2]
[354028880,1740184268456,-613.23,0.00012595,2]
[354028881,1740184268466,-811.34,0.00012595,2]
[354028882,1740184268478,-500.0,0.00012595,2]
[354028883,1740184268487,-500.0,0.00012595,2]
[354028884,1740184268497,-761.9,0.00012595,2]
[354028885,1740184268507,-500.0,0.00012595,2]
[354028886,1740184268516,-505.81844929,0.00012595,2]
[354028887,1740184268526,-768.21,0.00012595,2]
[354028888,1740184268536,-529.43,0.00012595,2]
[354028889,1740184268547,-803.09,0.00012595,2]
[354028890,1740184268566,-500.0,0.00012595,2]
[354028891,1740184268576,-500.0,0.00012595,2]
[354028892,1740184268587,-500.0,0.00012595,2]
[354028893,1740184268597,-792.55,0.00012595,2]
[354028894,1740184268607,-500.0,0.00012595,2]
[354028895,1740184268617,-500.0,0.00012596,2]
[354028896,1740184268627,-200.0,0.00012601,2]
[354028897,1740184268637,-1013.31914122,0.00012601,2]
[354028898,1740184268647,-150.0,0.00012646,2]
[354028899,1740184268657,-500.0,0.00012676,2]
[354028900,1740184268667,-500.0,0.00012676,2]
[354028901,1740184268676,-580.44,0.00012676,2]
[354028902,1740184268686,-547.09,0.00012676,2]
[354028903,1740184268696,-247.95469167,0.00012678,2]
[354028904,1740184268706,-160.331528,0.00012678,2]
[354028905,1740184268717,-1053.19,0.00012678,2]
[354028906,1740184268727,-500.0,0.00012678,2]
[354028907,1740184268738,-553.29,0.00012678,2]
[354028908,1740184268749,-500.0,0.00012678,2]
[354028909,1740184268759,-906.21,0.00012678,2]
[354028910,1740184268768,-575.43749376,0.00012678,2]
[354028911,1740184268777,-449.9,0.00012678,2]
[354028912,1740184268788,-500.0,0.00012678,2]
[354028913,1740184268798,-500.0,0.00012678,2]
[354028914,1740184268808,-679.72,0.00012678,2]
[354028915,1740184268818,-1197.13,0.00012678,2]
[354028916,1740184268828,-500.0,0.00012678,2]
[354028917,1740184268839,-500.0,0.00012678,2]
[354028918,1740184268849,-702.0,0.00012678,2]
[354028919,1740184268858,-500.0,0.00012678,2]
[354028920,1740184268868,-1114.13,0.00012678,2]
[354028921,1740184268878,-643.22,0.00012678,2]
[354028922,1740184268888,-500.0,0.00012678,2]
[354028923,1740184268898,-707.93,0.00012678,2]
[354028924,1740184268908,-500.0,0.00012678,2]
[354028925,1740184268918,-500.0,0.00012678,2]
[354028926,1740184268929,-548.22,0.00012678,2]
[354028927,1740184268939,-613.23,0.00012678,2]
[354028928,1740184268949,-811.34,0.00012678,2]
[354028929,1740184268960,-500.0,0.00012678,2]
[354028930,1740184268970,-500.0,0.00012678,2]
[354028931,1740184268980,-761.9,0.00012678,2]
[354028932,1740184269155,-500.0,0.00012678,2]
[354028933,1740184269167,-768.21,0.00012678,2]
[354028934,1740184269177,-529.43,0.00012678,2]
[354028935,1740184269187,-803.09,0.00012678,2]
[354028936,1740184269196,-500.0,0.00012678,2]
[354028937,1740184269206,-500.0,0.00012678,2]
[354028938,1740184269215,-500.0,0.00012678,2]
[354028939,1740184269225,-792.55,0.00012678,2]
[354028940,1740184269235,-500.0,0.00012678,2]
[354028941,1740184269245,-166.28,0.000127,2]
[354028942,1740184269255,-151.0,0.00012728,2]
[354028943,1740184269264,-442.437,0.00012729,2]
[354028944,1740184269274,-414.341,0.00012729,2]
[354028945,1740184269283,-1424.0,0.00012729,2]
[354028946,1740184269292,-1496.964,0.00012729,2]
[354028947,1740184269302,-539.0,0.00012729,2]
[354028948,1740184269311,-3919.0,0.00012729,2]
[354028949,1740184269322,-150.0,0.00012729,2]
[354028950,1740184269332,-548.762,0.00012729,2]
[354028951,1740184269343,-636.162,0.00012729,2]
[354028952,1740184269352,-1110.0,0.00012729,2]
[354028953,1740184269363,-500.0,0.0001274,2]
[354028954,1740184269373,-533.14174775,0.00012759,2]
[354028955,1740184269382,-488.73083539,0.00012759,2]
[354028956,1740184269393,-580.44,0.00012759,2]
[354028957,1740184269407,-547.09,0.00012759,2]
[354028958,1740184269417,-1053.19,0.0001276,2]
[354028959,1740184269427,-485.38918098,0.0001276,2]
[354028960,1740184269436,-150.336914,0.0001276,2]
[354028961,1740184269446,-553.29,0.0001276,2]
[354028962,1740184269456,-500.0,0.0001276,2]
[354028963,1740184269466,-906.21,0.0001276,2]